Cogmind - Beta 14 @@@ ROGUE MODE // 2024.11.17 @ 15:27:45 Player: fpsbossfight Result: Destroyed by Armor Guard with Advanced Plasma Rifle Performance ------------- Evolutions (6) 3000 Regions Visited (21) 4200 Robots Destroyed (245) 1225 Value Destroyed (11932) 11932 Prototype IDs (15) 300 Alien Tech Used (0) 0 Bonus (5126) 5126 TOTAL SCORE: 25783 Bonus ------- High Alert Combat Kills 2340 Follower Combat Kills 1059 Entered Garrisons 400 Used RIF Installer 1500 Friendly Fire -173 Cogmind --------- Core Integrity 0/1150 Matter 295/300 Energy 100/100 System Corruption 1% Temperature Cool (12) Movement Core (50) Location -4/Armory Parts ------- > --- POWER (2) -------- (None) > --- PROPULSION (4) --- (None) > --- UTILITY (10) ----- Improved Signal Interpreter > --- WEAPON (3) ------- (None) > --- INVENTORY (5) ---- Cooled Aerolev Unit Cooled Aerolev Unit Field Propulsion Drive Peak State ------------ > --- POWER ------------ Quantum Reactor Quantum Reactor > --- PROPULSION ------- Biometal Heavy Treads Biometal Heavy Treads > --- UTILITY ---------- Advanced Heat Sink Advanced Heat Sink Advanced Coolant Injector Large Storage Unit Improved Signal Interpreter Improved Targeting Computer Improved Transmission Jammer Graphene Brace Improved System Guard Improved Corruption Screen > --- WEAPON ----------- Heavy Plasma Cannon Enhanced Nova Cannon Enhanced Nova Cannon > --- INVENTORY -------- Heavy Deuterium Engine Improved Treads Improved Treads Power Amplifier Improved Medium Armor Plating Long-range Proton Cannon Long-range Proton Cannon Long-range Proton Cannon Long-range Proton Cannon Heavy Plasma Cannon Advanced Plasma Cannon Matter Neutralizer Heavy Shock Bomb Launcher Heavy Rocket Launcher Improved Remote Datajack [Rating: 133] Favorites ----------- Power Quantum Reactor Engine Ion Engine Power Core Enhanced Nuclear Core Reactor Quantum Reactor Propulsion Light Treads Treads Light Treads Leg Flexi-carbon Leg Wheel Armored Huge Wheel Hover Unit Backup Propulsion III Flight Unit Cooled Cesium-ion Thruster Utility Large Storage Unit Device Advanced Heat Sink Storage Large Storage Unit Processor Improved Targeting Computer Hackware Relay Coupler [Duelist] Protection Hardened Heavy Armor Plating Weapon Plasma Cannon Energy Gun Backup Laser III Energy Cannon Plasma Cannon Ballistic Gun Assault Rifle Ballistic Cannon Light Cannon Launcher Point Singularity Launcher Special Weapon Improved Remote Datajack Slashing Weapon Scythe Piercing Weapon Force Lance Build | -11 -10 -10 -10 -9 -8 -8 -8 -7 -7 -7 -5 -5 -5 -5 -5 -5 -4 -4 -4 -4 -4 ------- Run | Yrd Mat Min Exi Min Mat Gar Mat Fac Sto Rec Fac Gar Fac Upp Upp War Pro Fac Was Fac Arm Slots Evolved 12 | . . . . . 4 . . 2 . . 4 . . . . . . 2 . . . Power 1 | . . . . . . . . . . . . . . . . . . 1 . . . Propulsion 2 | . . . . . 2 . . . . . . . . . . . . . . . . Utility 8 | . . . . . 2 . . 2 . . 3 . . . . . . 1 . . . Weapon 1 | . . . . . . . . . . . 1 . . . . . . . . . . Parts Attached 207 | 2 7 . 1 2 9 13 28 24 1 5 14 43 3 2 2 . 5 24 7 6 9 Power 15 | . 1 . . . . 1 4 5 . . . 1 . . . . . 2 . 1 . Engine 7 | . 1 . . . . 1 1 3 . . . . . . . . . 1 . . . Core 5 | . . . . . . . 3 2 . . . . . . . . . . . . . Reactor 3 | . . . . . . . . . . . . 1 . . . . . 1 . 1 . Propulsion 54 | 2 1 . . 2 4 6 6 5 1 . 3 9 . . 1 . 1 2 1 4 6 Treads 39 | 2 1 . . 2 4 5 6 5 1 . 3 7 . . 1 . 1 1 . . . Leg 3 | . . . . . . . . . . . . . . . . . . . 1 2 . Wheel 2 | . . . . . . . . . . . . 2 . . . . . . . . . Hover 3 | . . . . . . . . . . . . . . . . . . 1 . 2 . Flight 7 | . . . . . . 1 . . . . . . . . . . . . . . 6 Utility 53 | . 3 . 1 . 2 1 6 9 . 1 7 10 1 . 1 . 2 6 1 1 1 Device 31 | . . . . . 1 . 4 6 . . 6 6 1 . . . 2 3 1 . 1 Storage 2 | . 1 . 1 . . . . . . . . . . . . . . . . . . Processor 7 | . 1 . . . . . 1 1 . 1 . . . . 1 . . 1 . 1 . Hackware 2 | . . . . . . . . . . . . 2 . . . . . . . . . Protection 11 | . 1 . . . 1 1 1 2 . . 1 2 . . . . . 2 . . . Artifact . | . . . . . . . . . . . . . . . . . . . . . . Weapon 85 | . 2 . . . 3 5 12 5 . 4 4 23 2 2 . . 2 14 5 . 2 Energy Gun 2 | . . . . . . . . . . . . . . . . . . . 1 . 1 Energy Cannon 40 | . . . . . . . 4 3 . 2 3 14 1 1 . . 2 9 . . 1 Ballistic Gun 1 | . . . . . . . 1 . . . . . . . . . . . . . . Ballistic Cannon 11 | . 2 . . . 2 3 3 . . . . . . . . . . . 1 . . Launcher 21 | . . . . . 1 1 4 2 . . 1 5 1 1 . . . 4 1 . . Special Weapon 8 | . . . . . . 1 . . . 2 . 4 . . . . . . 1 . . Impact Weapon . | . . . . . . . . . . . . . . . . . . . . . . Slashing Weapon 1 | . . . . . . . . . . . . . . . . . . 1 . . . Piercing Weapon 1 | . . . . . . . . . . . . . . . . . . . 1 . . Special Melee Weapon . | . . . . . . . . . . . . . . . . . . . . . . Unidentified Prototypes 5 | . . . . . . . 1 1 . . . 1 . . . . . . 1 . 1 Parts Lost 52 | . 1 . . 1 1 2 11 3 . . . 7 . . . . 3 16 1 1 5 Power 8 | . . . . . . 1 2 . . . . . . . . . . 3 . 1 1 Propulsion 15 | . . . . 1 . . 4 2 . . . 3 . . . . 1 1 . . 3 Utility 14 | . 1 . . . . . 3 . . . . 2 . . . . 1 6 . . 1 Weapon 15 | . . . . . 1 1 2 1 . . . 2 . . . . 1 6 1 . . Highest Loss Streak 6 | . 1 . . 1 1 1 4 2 . . . 3 . . . . 2 6 1 1 5 To Critical Strikes 1 | . . . . . . . . . . . . . . . . . 1 . . . . Average Slot Usage (%) 88 | . 94 100 100 99 84 89 90 96 92 92 89 92 88 88 88 88 84 79 29 45 35 Engine 4 | . 14 14 14 14 9 8 . 6 . . . . . . . . . 1 6 7 . Core 2 | . . . . . . . 8 . 7 7 5 3 . . . . . . . . . Reactor 1 | . . . . . . . . . . . . 1 5 5 5 5 5 6 . 2 4 Treads 24 | . 28 28 28 27 32 36 36 30 30 30 23 18 11 11 11 11 11 9 . . . Device 11 | . . . . . 3 . 9 19 15 9 18 20 23 23 23 23 24 24 1 . 3 Storage 7 | . 14 14 14 14 9 9 9 7 7 7 5 5 5 5 5 5 5 4 . . . Processor 9 | . 6 14 14 14 9 9 6 5 7 12 11 11 11 11 15 17 17 13 . 3 5 Protection 5 | . 1 . . . 3 9 4 8 7 7 5 6 5 5 5 5 . 2 4 10 4 Energy Gun 1 | . 10 . . . . . . . . . . . . . . . . . 7 10 4 Energy Cannon 9 | . . . . . . . 5 15 15 14 16 16 16 16 17 17 17 13 . . . Ballistic Cannon 7 | . 17 28 28 28 17 17 9 . . . . . . . . . . . . . . Peak Build Rating 133 | 6 8 8 8 9 21 33 33 43 43 45 68 111 111 111 114 114 114 133 40 38 51 Average Rating 48 | 6 7 8 8 8 17 25 26 36 42 43 58 81 110 110 113 114 110 114 23 30 32 On Entrance 47 | 6 6 8 8 8 9 21 29 27 43 43 43 68 111 111 111 114 114 114 3 25 32 Naked Turns 30 | . . . . . . . . . . . . . . . . . . 16 14 . . Heaviest Build 108 | 12 22 21 31 31 46 51 52 68 65 65 74 88 87 87 87 87 87 108 25 26 38 Greatest Support 150 | 40 40 40 40 43 85 95 95 80 80 80 86 150 150 150 150 150 150 150 20 40 40 Greatest Overweight (x) 4 | . . . . 1 . 1 . . . . . 2 . . 1 . . . 4 . 2 Average Overweight (x) . | . . . . . . . . . . . . . . . . . . . . . . Largest Inventory Capacity 15 | 8 10 10 15 15 15 15 15 15 15 15 15 15 15 15 15 15 15 15 5 5 5 Average Capacity 13 | 8 9 10 10 15 15 15 15 15 15 15 15 15 15 15 15 15 15 14 5 5 5 Most Carried 15 | 6 10 10 10 10 15 15 15 15 15 15 15 15 15 15 15 14 14 15 5 4 5 Average Carried 12 | 6 9 10 9 9 14 13 14 14 14 15 14 14 14 15 14 14 12 12 3 2 3 Final Capacity 15 | 8 10 10 15 15 15 15 15 15 15 15 15 15 15 15 15 15 15 5 5 5 5 Final Carried 15 | 6 10 10 10 10 15 15 13 14 15 15 15 14 15 15 14 14 12 5 3 2 3 Class Distribution -------------------- 39% | Mutant 20% | Scavenger-Gunner 18% | Scavenger-Mutant 9% | Gunner 6% | Bothacker-Mutant Dominant Class ---------------- Mutant | -10/Materials Mutant | -10/Mines Mutant | -10/Exiles Mutant | -9/Mines Mutant | -8/Materials Mutant | -8/Garrison Scavenger-Mutant | -8/Materials Scavenger-Mutant | -7/Factory Scavenger-Mutant | -7/Storage Mutant | -7/Recycling Gunner | -5/Factory Scavenger-Gunner | -5/Garrison Scavenger-Gunner | -5/Factory Scavenger-Gunner | -5/Upper Caves Scavenger-Gunner | -5/Upper Caves Scavenger-Gunner | -5/Warlord Scavenger-Gunner | -4/Proximity Caves Gunner | -4/Factory Mutant | -4/Waste Mutant | -4/Factory Sprinter | -4/Armory Resources | -11 -10 -10 -10 -9 -8 -8 -8 -7 -7 -7 -5 -5 -5 -5 -5 -5 -4 -4 -4 -4 -4 ----------- Run | Yrd Mat Min Exi Min Mat Gar Mat Fac Sto Rec Fac Gar Fac Upp Upp War Pro Fac Was Fac Arm Matter Collected 4889 | 200 345 56 . 141 279 720 720 300 10 99 165 679 149 48 24 . 80 409 342 21 102 Remotely . | . . . . . . . . . . . . . . . . . . . . . . Salvage Created 10645 | . 375 63 . 156 270 320 1099 1518 224 172 809 2171 1018 59 400 . 581 1410 . . . Parts 464 | . 27 . . 11 14 23 77 51 14 5 26 88 44 9 9 . 12 54 . . . Haulers Intercepted 2 | . 1 . . . 1 . . . . . . . . . . . . . . . . Recyclers Shooed 4 | . . . . . . . 1 2 . . . . 1 . . . . . . . . Parts Field Recycled . | . . . . . . . . . . . . . . . . . . . . . . Retrieved Matter . | . . . . . . . . . . . . . . . . . . . . . . Parts Self-Destructed 29 | . . . . . . . . . . . . . . 8 9 . 12 . . . . Prevented . | . . . . . . . . . . . . . . . . . . . . . . Kills | -11 -10 -10 -10 -9 -8 -8 -8 -7 -7 -7 -5 -5 -5 -5 -5 -5 -4 -4 -4 -4 -4 ------- Run | Yrd Mat Min Exi Min Mat Gar Mat Fac Sto Rec Fac Gar Fac Upp Upp War Pro Fac Was Fac Arm Combat Hostiles Destroyed 211 | . 11 2 . 7 7 15 22 26 3 4 12 46 16 5 6 . 8 21 . . . Guns 8 | . 7 . . . . . 1 . . . . . . . . . . . . . . Cannons 130 | . 4 2 . 7 6 12 16 19 3 2 7 22 10 . 6 . 5 9 . . . AOE 44 | . . . . . 1 3 3 4 . . 2 18 2 5 . . . 6 . . . Classes Destroyed 18 | . 5 . . 1 3 2 4 1 . 1 . 1 . . . . . . . . . Worker 3 | . 1 . . . . . . . . . . . . . . . . 2 . . . Builder 11 | . . . . . . . 2 . . . 2 . . . . . . 7 . . . Hauler 2 | . 1 . . . 1 . . . . . . . . . . . . . . . . Recycler 4 | . . . . 1 . . 1 2 . . . . . . . . . . . . . Operator 4 | . . . . . 1 . 2 1 . . . . . . . . . . . . . Watcher 9 | . 2 . . . 1 . 1 1 1 . 1 . . . . . . 2 . . . Swarmer 45 | . 5 . . 7 . 6 1 3 . . . 18 . 5 . . . . . . . Grunt 88 | . 6 2 . . 3 2 11 14 . 1 6 18 9 . 5 . 4 7 . . . Brawler 4 | . . . . . . . 1 2 . . . 1 . . . . . . . . . Duelist 2 | . . . . . . . . 1 . . . 1 . . . . . . . . . Protector 1 | . . . . . . . 1 . . . . . . . . . . . . . . Sentry 32 | . . . . . 3 . 7 2 3 2 6 6 . . 1 . . 2 . . . Demolisher 1 | . . . . . . . . . . 1 . . . . . . . . . . . Specialist 5 | . . . . . . 1 . 2 . . . . . . . . . 2 . . . Hunter 15 | . . . . . 1 3 . . . . . . 5 . . . 4 2 . . . Programmer 13 | . . . . . . 3 . 1 . . . . 2 . . . . 7 . . . Heavy 3 | . . . . . . . 1 1 . . . . . . . . . 1 . . . Behemoth 2 | . . . . . . . . . . . . 2 . . . . . . . . . Guerrilla 1 | . . . . . . . . . . . . 1 . . . . . . . . . Best Kill Streak 14 | . 3 2 . 5 2 3 6 4 2 2 6 14 4 5 5 . 4 11 . . . Combat Bots Only 14 | . 3 2 . 4 2 3 5 4 2 2 4 14 4 5 5 . 4 8 . . . Max Kills in Single Turn 5 | . 1 1 . 2 1 3 2 3 1 1 2 5 1 3 1 . 1 5 . . . Gunslinging . | . . . . . . . . . . . . . . . . . . . . . . Exploded 5 | . . . . . 1 3 2 3 . . 2 5 1 3 . . . 1 . . . Melee . | . . . . . . . . . . . . . . . . . . . . . . Uniques/NPCs Destroyed . | . . . . . . . . . . . . . . . . . . . . . . Combat | -11 -10 -10 -10 -9 -8 -8 -8 -7 -7 -7 -5 -5 -5 -5 -5 -5 -4 -4 -4 -4 -4 -------- Run | Yrd Mat Min Exi Min Mat Gar Mat Fac Sto Rec Fac Gar Fac Upp Upp War Pro Fac Was Fac Arm Hostile Shots Fired 1480 | . 46 16 . 28 43 96 89 156 36 44 68 190 73 4 27 . 112 287 1 37 127 Missed 505 | . 11 6 . 10 22 21 25 65 12 16 23 50 19 2 7 . 41 69 . 19 87 Damage Taken 16760 | . 344 123 . 141 409 1072 1230 1420 301 341 674 2660 1046 27 397 . 1293 4220 37 319 706 Core 2142 | . 10 10 . 15 83 78 30 140 . 26 41 207 32 . 48 . 245 609 37 56 475 Absorbed by Shields 790 | . . . . . . . . . . 56 293 387 . . . . . . . . 54 Regen/Repaired (Parts) 61 | . . . . . . . 56 . . . . . . . . . . . . 5 . Core Remaining (%) 73 | 100 . . . 86 . . 65 . . 76 . . . . . . 42 . . . . Volleys Fired 663 | . 42 7 . 19 30 75 80 81 9 19 38 123 32 3 15 . 22 62 5 . 1 Largest 3 | . 2 2 . 2 2 2 2 2 2 2 3 3 3 3 3 . 3 3 1 . 1 Hottest 330 | . 100 70 . 70 70 70 160 160 160 160 240 330 330 330 330 . 330 330 55 . 40 Shots Fired 1331 | . 60 14 . 29 54 139 127 157 17 31 100 258 84 7 45 . 66 137 5 . 1 Gun 43 | . 30 . . . . . 12 . . . . . . . . . . . . . 1 Cannon 1197 | . 30 14 . 29 48 132 108 152 17 24 97 225 79 5 45 . 66 126 . . . Launcher 53 | . . . . . 6 1 7 5 . . 3 9 5 2 . . . 11 4 . . Special 38 | . . . . . . 6 . . . 7 . 24 . . . . . . 1 . . Kinetic 339 | . 30 14 . 29 48 132 86 . . . . . . . . . . . . . . Thermal 900 | . 30 . . . . . 34 152 17 24 97 224 79 5 45 . 66 126 . . 1 Explosive 35 | . . . . . 6 1 2 2 . . 3 9 . 2 . . . 6 4 . . Electromagnetic 19 | . . . . . . . 5 3 . . . 1 5 . . . . 5 . . . Robot Hit Streak 26 | . 10 8 . 5 12 26 14 24 23 10 24 18 17 . 5 . 7 20 2 . . Robot Miss Streak 5 | . 2 1 . 4 2 2 3 2 2 2 2 3 5 . 1 . 3 4 1 . . Penetration Max . | . . . . . . . . . . . . . . . . . . . . . . Secondary Targets . | . . . . . . . . . . . . . . . . . . . . . . Shots Hit Robots 859 | . 39 9 . 13 37 89 80 118 12 25 76 168 44 . 18 . 35 94 2 . . Core Hits 419 | . 20 3 . 8 23 29 44 52 7 5 33 91 23 4 10 . 11 56 . . . Critical Kills 14 | . . . . . . . . 1 . . 1 3 3 . . . 3 3 . . . Critical Parts Destroyed . | . . . . . . . . . . . . . . . . . . . . . . Critical Strikes 31 | . 4 1 . . 3 5 4 1 . . 1 3 3 . . . 3 3 . . . Burn 1 | . 1 . . . . . . . . . . . . . . . . . . . . Meltdown 14 | . . . . . . . . 1 . . 1 3 3 . . . 3 3 . . . Blast 16 | . 3 1 . . 3 5 4 . . . . . . . . . . . . . . Melee Attacks . | . . . . . . . . . . . . . . . . . . . . . . Impact . | . . . . . . . . . . . . . . . . . . . . . . Slashing . | . . . . . . . . . . . . . . . . . . . . . . Piercing . | . . . . . . . . . . . . . . . . . . . . . . Sneak Attacks . | . . . . . . . . . . . . . . . . . . . . . . Combat Hostiles . | . . . . . . . . . . . . . . . . . . . . . . Follow-up Attacks . | . . . . . . . . . . . . . . . . . . . . . . Damage Inflicted 29674 | . 603 150 . 248 1181 1465 2207 3437 369 485 2264 6154 2182 328 781 . 1490 5239 1086 5 . Guns 336 | . 239 . . . . . 97 . . . . . . . . . . . . . . Cannons 21582 | . 351 150 . 248 640 1343 1447 2963 299 485 1954 4296 1841 . 781 . 1490 3294 . . . Explosions 7709 | . . . . . 541 114 663 469 70 . 306 1858 341 328 . . . 1933 1086 . . Melee . | . . . . . . . . . . . . . . . . . . . . . . Ramming 47 | . 13 . . . . 8 . 5 . . 4 . . . . . . 12 . 5 . Kinetic 3690 | . 351 150 . 248 640 1343 958 . . . . . . . . . . . . . . Thermal 18598 | . 239 . . . . . 722 2984 299 485 1954 4296 1841 . 781 . 1490 3507 . . . Explosive 5972 | . . . . . 541 114 38 259 70 . 306 1858 . 328 . . . 1372 1086 . . Electromagnetic 1367 | . . . . . . . 489 189 . . . . 341 . . . . 348 . . . Impact . | . . . . . . . . . . . . . . . . . . . . . . Slashing . | . . . . . . . . . . . . . . . . . . . . . . Piercing . | . . . . . . . . . . . . . . . . . . . . . . Highest Corruption 4 | . . . . . . 4 4 . . . . 3 4 4 4 4 4 3 3 3 3 Average Corruption 3 | . . . . . . 3 4 . . . . 3 3 4 4 4 4 2 3 3 1 Corruption Purged 3 | . . . . . . . . . . . . . . . . . . . . . 3 Corruption Blocked . | . . . . . . . . . . . . . . . . . . . . . . Effects 152 | . . . . . . 30 36 . . . . 28 16 10 7 2 11 4 3 4 1 Message Errors 31 | . . . . . . 3 12 . . . . 4 2 3 1 1 2 1 1 1 . Matter Fused 29 | . . . . . . 8 7 . . . . 5 1 1 3 . 2 1 1 . . Heat Flow Errors 19 | . . . . . . 3 2 . . . . 5 2 1 . 1 3 1 . 1 . Energy Discharges 19 | . . . . . . 3 8 . . . . 2 3 . . . 2 . . . 1 Parts Rejected 5 | . . . . . . 1 . . . . . 1 . . . . 1 . . 2 . Parts Fused 1 | . . . . . . . . . . . . . 1 . . . . . . . . Data Loss (minor) 13 | . . . . . . 4 2 . . . . 1 2 1 3 . . . . . . Data Loss (major) 13 | . . . . . . 3 2 . . . . 3 1 2 . . 1 . 1 . . Misfires 10 | . . . . . . 1 2 . . . . 4 . 2 . . . 1 . . . Alerts 6 | . . . . . . 3 . . . . . 1 2 . . . . . . . . Weapon Failures 6 | . . . . . . 1 1 . . . . 2 2 . . . . . . . . Overload Shots . | . . . . . . . . . . . . . . . . . . . . . . Overflow Damage 560 | . . . . . 46 37 1 31 1 . 57 64 59 40 . . 44 180 . . . Projectiles 368 | . . . . . 10 37 1 31 . . 36 28 59 . . . 44 122 . . . Explosions 192 | . . . . . 36 . . . 1 . 21 36 . 40 . . . 58 . . . Melee . | . . . . . . . . . . . . . . . . . . . . . . Knockbacks 27 | . 3 3 . 5 2 9 5 . . . . . . . . . . . . . . Impact . | . . . . . . . . . . . . . . . . . . . . . . Kinetic 25 | . 3 3 . 4 2 8 5 . . . . . . . . . . . . . . Secondary 2 | . . . . 1 . 1 . . . . . . . . . . . . . . . Self-Inflicted Damage 705 | . . . . . . 30 . 28 66 . . 265 . . . . . 316 . . . Shots 18 | . . . . . . 1 . 2 1 . . 7 . . . . . 7 . . . Rammed 10 | . 4 . . . . 1 . 2 . . 1 . . . . . . 2 . . . Targets Rammed 12 | . 4 . . . . 1 . 2 . . 2 . . . . . . 2 . 1 . Kicked 1 | . . . . . . . . . . . . . . . . . . . . 1 . Crushed 1 | . . . . . . . . . . . 1 . . . . . . . . . . Highest Temperature 816 | . 330 135 . 41 27 212 118 143 8 114 162 233 195 132 196 85 197 816 . 89 . Average Temperature 86 | . 81 71 . 19 13 38 27 26 6 46 63 85 105 67 88 45 106 212 . 47 . Received Heat Transfer 4095 | . 126 72 . . 207 144 369 501 54 54 224 902 253 . 120 . 30 825 . 12 202 Effects 27 | . 2 . . . . . . . . . . . . . . . . 25 . . . Shutdowns 2 | . . . . . . . . . . . . . . . . . . 2 . . . Energy Bleed 6 | . 2 . . . . . . . . . . . . . . . . 4 . . . Interference 1 | . . . . . . . . . . . . . . . . . . 1 . . . Matter Decay 4 | . . . . . . . . . . . . . . . . . . 4 . . . Short Circuit 3 | . . . . . . . . . . . . . . . . . . 3 . . . Damage (minor) 1 | . . . . . . . . . . . . . . . . . . 1 . . . Damage (major) 9 | . . . . . . . . . . . . . . . . . . 9 . . . Damage (core) 1 | . . . . . . . . . . . . . . . . . . 1 . . . Siege Activations . | . . . . . . . . . . . . . . . . . . . . . . Robots Corrupted 5 | . . . . . . . 2 . . . . . 1 . . . . 2 . . . Combat Hostiles 5 | . . . . . . . 2 . . . . . 1 . . . . 2 . . . Parts Fried 11 | . . . . . . . 3 . . . 1 . 2 . . . . 5 . . . Impact Corruptions . | . . . . . . . . . . . . . . . . . . . . . . Robots Melted 25 | . . . . . . . . 3 . 2 3 6 3 . . . 3 5 . . . Combat Hostiles 24 | . . . . . . . . 3 . 2 3 6 3 . . . 3 4 . . . Parts Melted 96 | . 1 . . . . . 2 19 . 5 13 20 8 . 4 . 5 19 . . . Heat Transferred 28272 | . 777 . . . . . 1300 5900 600 876 3850 6675 1897 . 831 . 1651 3915 . . . Parts Sabotaged 3 | . . . . . . . . . . . . . . . . . . . . . 3 Parts Stolen . | . . . . . . . . . . . . . . . . . . . . . . Parts Stripped . | . . . . . . . . . . . . . . . . . . . . . . Power Chain Reactions 3 | . . . . . . . 1 1 . . . . 1 . . . . . . . . Alert | -11 -10 -10 -10 -9 -8 -8 -8 -7 -7 -7 -5 -5 -5 -5 -5 -5 -4 -4 -4 -4 -4 ------- Run | Yrd Mat Min Exi Min Mat Gar Mat Fac Sto Rec Fac Gar Fac Upp Upp War Pro Fac Was Fac Arm Peak Influence 1478 | . 273 129 . 155 320 1287 932 670 536 278 290 1478 1091 . . . . 826 336 1097 973 Initial 775 | . . 64 . . . 130 627 423 304 208 2 98 775 . . . . 56 289 232 536 Average 460 | . 90 125 . 73 149 566 747 456 391 153 109 840 935 . . . . 434 325 643 618 Maximum Alert Level 4 | . 1 . . . 1 4 3 2 2 1 1 4 3 . . . . 3 1 3 3 Low Security (%) 30 | 100 93 100 . 100 72 6 . . . 57 92 3 . . . . . 8 . . . Level 1 18 | . 6 . . . 27 27 . 25 51 42 7 7 . . . . . 36 100 37 . Level 2 26 | . . . . . . 35 37 74 48 . . 32 . . . . . 45 . 9 77 Level 3 21 | . . . . . . 26 62 . . . . 32 100 . . . . 9 . 52 22 Level 4 3 | . . . . . . 4 . . . . . 22 . . . . . . . . . Level 5 . | . . . . . . . . . . . . . . . . . . . . . . High Security . | . . . . . . . . . . . . . . . . . . . . . . Max Security . | . . . . . . . . . . . . . . . . . . . . . . Squads Dispatched 43 | . 3 . . 1 2 . 5 12 . . 4 . 1 . . . . 6 . . 9 Investigation 11 | . 2 . . . 2 . . . . . 1 . . . . . . 2 . . 4 Extermination 2 | . . . . . . . . 1 . . . . . . . . . 1 . . . Reinforcement 18 | . 1 . . . . . 4 6 . . . . 1 . . . . 3 . . 3 Assault 4 | . . . . 1 . . 1 . . . . . . . . . . . . . 2 Garrison 8 | . . . . . . . . 5 . . 3 . . . . . . . . . . Intercept . | . . . . . . . . . . . . . . . . . . . . . . Searches Triggered . | . . . . . . . . . . . . . . . . . . . . . . Construction Impeded 3 | . . . . . . . 1 . . . . . 1 . . . . 1 . . . Haulers Reinforced 1 | . . . . . . . . 1 . . . . . . . . . . . . . Active Scanning Responses . | . . . . . . . . . . . . . . . . . . . . . . Cargo Convoy Interrupts . | . . . . . . . . . . . . . . . . . . . . . . Stealth | -11 -10 -10 -10 -9 -8 -8 -8 -7 -7 -7 -5 -5 -5 -5 -5 -5 -4 -4 -4 -4 -4 --------- Run | Yrd Mat Min Exi Min Mat Gar Mat Fac Sto Rec Fac Gar Fac Upp Upp War Pro Fac Was Fac Arm Distress Signals 13 | . 1 . . . 1 . 1 . 1 . . . . . . . . 3 . 2 4 Communications Jammed 4 | . . . . . . . . . . . . . . . . . . 4 . . . Distress Signals 2 | . . . . . . . . . . . . . . . . . . 2 . . . Times Spotted 365 | . 20 2 . 7 15 19 39 35 5 7 17 52 21 4 5 . 8 37 5 18 49 Peak Tracking Total 34 | . 3 2 . 4 3 4 5 4 2 3 5 7 4 3 4 . 4 8 4 8 34 Tactical Retreats 16 | . 3 . . . . 1 . 2 . . 3 1 . . . . . 2 . . 4 Traps | -11 -10 -10 -10 -9 -8 -8 -8 -7 -7 -7 -5 -5 -5 -5 -5 -5 -4 -4 -4 -4 -4 ------- Run | Yrd Mat Min Exi Min Mat Gar Mat Fac Sto Rec Fac Gar Fac Upp Upp War Pro Fac Was Fac Arm Traps Triggered 13 | . 2 . . . . 1 . . 1 . . 1 3 . . . . 2 . . 3 Indirectly 2 | . . . . . . . . . . . . . 2 . . . . . . . . Trap Hack Attempts . | . . . . . . . . . . . . . . . . . . . . . . Triggered . | . . . . . . . . . . . . . . . . . . . . . . Disarmed 6 | . . . . . . . . 6 . . . . . . . . . . . . . Reprogrammed . | . . . . . . . . . . . . . . . . . . . . . . Reused . | . . . . . . . . . . . . . . . . . . . . . . Traps Extracted . | . . . . . . . . . . . . . . . . . . . . . . Installed . | . . . . . . . . . . . . . . . . . . . . . . Triggered . | . . . . . . . . . . . . . . . . . . . . . . Machines | -11 -10 -10 -10 -9 -8 -8 -8 -7 -7 -7 -5 -5 -5 -5 -5 -5 -4 -4 -4 -4 -4 ---------- Run | Yrd Mat Min Exi Min Mat Gar Mat Fac Sto Rec Fac Gar Fac Upp Upp War Pro Fac Was Fac Arm Machines Disabled 33 | . 1 1 . . . 4 3 5 2 . 1 3 2 . . . . 8 . 3 . Max in Single Turn 5 | . 1 1 . . . 1 . 1 1 . 1 1 1 . . . . 5 . . . Garrison Access 3 | . . . . . . . 1 1 . . 1 . . . . . . . . . . Garrison Relay 7 | . . . . . . 3 . . . . . 4 . . . . . . . . . Machines Repaired . | . . . . . . . . . . . . . . . . . . . . . . Machines Dismantled . | . . . . . . . . . . . . . . . . . . . . . . Machines Sabotaged . | . . . . . . . . . . . . . . . . . . . . . . Overloaded Fab Kills . | . . . . . . . . . . . . . . . . . . . . . . Hacking | -11 -10 -10 -10 -9 -8 -8 -8 -7 -7 -7 -5 -5 -5 -5 -5 -5 -4 -4 -4 -4 -4 --------- Run | Yrd Mat Min Exi Min Mat Gar Mat Fac Sto Rec Fac Gar Fac Upp Upp War Pro Fac Was Fac Arm Machines Accessed 74 | . 7 . . . 7 2 12 8 7 9 8 3 . 1 1 . . 1 . 3 5 Terminals 52 | . 5 . . . 5 2 7 5 5 6 4 3 . . 1 . . 1 . 3 5 Fabricators 2 | . . . . . . . . 2 . . . . . . . . . . . . . Repair Stations 2 | . . . . . . . 2 . . . . . . . . . . . . . . Recycling Units 12 | . 2 . . . 1 . 2 . 2 3 2 . . . . . . . . . . Scanalyzers . | . . . . . . . . . . . . . . . . . . . . . . Garrison Access 5 | . . . . . 1 . 1 1 . . 2 . . . . . . . . . . Total Hacks 165 | . 14 . . . 24 4 29 22 16 19 12 5 . 1 2 . . 2 . 6 9 Successful 82 | . 12 . . . 11 . 19 15 9 3 3 3 . 1 2 . . . . 1 3 Failed 83 | . 2 . . . 13 4 10 7 7 16 9 2 . . . . . 2 . 5 6 Catastrophic 19 | . . . . . 2 3 1 3 . 2 3 1 . . . . . . . 2 2 Database Lockouts . | . . . . . . . . . . . . . . . . . . . . . . Manual 85 | . 10 . . . 13 . 14 7 15 13 9 1 . . . . . 2 . 1 . Terminals 129 | . 12 . . . 21 4 20 17 13 12 6 5 . . 2 . . 2 . 6 9 Fabricators 3 | . . . . . . . . 3 . . . . . . . . . . . . . Repair Stations 5 | . . . . . . . 5 . . . . . . . . . . . . . . Recycling Units 20 | . 2 . . . 1 . 3 . 3 7 4 . . . . . . . . . . Scanalyzers . | . . . . . . . . . . . . . . . . . . . . . . Garrison Access 7 | . . . . . 2 . 1 2 . . 2 . . . . . . . . . . Terminal Hacks 40 | . 4 . . . 6 . 7 8 3 1 1 3 . 1 2 . . . . 1 3 Record 4 | . . . . . . . 1 . . . . . . . 2 . . . . . 1 Prototype ID Bank 6 | . 2 . . . 2 . . 2 . . . . . . . . . . . . . Open Door 4 | . . . . . . . . . . . . 1 . 1 . . . . . . 2 Open DSF 2 | . . . . . . . . 1 . . 1 . . . . . . . . . . Branch Access Points 3 | . . . . . 1 . . 1 . 1 . . . . . . . . . . . Emergency Access Points 2 | . . . . . . . 1 . . . . 1 . . . . . . . . . Terminal Index 1 | . . . . . . . 1 . . . . . . . . . . . . . . Alert Level 2 | . . . . . 2 . . . . . . . . . . . . . . . . Unreport Threat 2 | . . . . . . . 1 1 . . . . . . . . . . . . . Locate Traps 4 | . 1 . . . 1 . . 1 1 . . . . . . . . . . . . Disarm Traps 1 | . . . . . . . . 1 . . . . . . . . . . . . . Recall Investigation 1 | . 1 . . . . . . . . . . . . . . . . . . . . Hauler Manifests 1 | . . . . . . . 1 . . . . . . . . . . . . . . Zone Layout 6 | . . . . . . . 2 1 2 . . . . . . . . . . 1 . Garrison Registry 1 | . . . . . . . . . . . . 1 . . . . . . . . . Fabricator Hacks 1 | . . . . . . . . 1 . . . . . . . . . . . . . Build 1 | . . . . . . . . 1 . . . . . . . . . . . . . Repair Station Hacks 3 | . . . . . . . 3 . . . . . . . . . . . . . . Scan Component 2 | . . . . . . . 2 . . . . . . . . . . . . . . Repair 1 | . . . . . . . 1 . . . . . . . . . . . . . . Recycling Unit Hacks . | . . . . . . . . . . . . . . . . . . . . . . Scanalyzer . | . . . . . . . . . . . . . . . . . . . . . . Garrison Access Hacks 6 | . . . . . 1 . 1 2 . . 2 . . . . . . . . . . Unlock Access 2 | . . . . . 1 . . . . . 1 . . . . . . . . . . Seal Access 3 | . . . . . . . 1 1 . . 1 . . . . . . . . . . Coupler Status 1 | . . . . . . . . 1 . . . . . . . . . . . . . Unauthorized Hacks 32 | . 8 . . . 4 . 8 4 6 2 . . . . . . . . . . . Terminals 24 | . 6 . . . 3 . 6 4 5 . . . . . . . . . . . . Track 2 | . 1 . . . . . . . 1 . . . . . . . . . . . . Botnet 19 | . 4 . . . 3 . 5 3 4 . . . . . . . . . . . . Disrupt 3 | . 1 . . . . . 1 1 . . . . . . . . . . . . . Fabricators . | . . . . . . . . . . . . . . . . . . . . . . Repair Stations . | . . . . . . . . . . . . . . . . . . . . . . Recycling Units 8 | . 2 . . . 1 . 2 . 1 2 . . . . . . . . . . . Reject 6 | . 1 . . . 1 . 2 . 1 1 . . . . . . . . . . . Recyclers 1 | . . . . . . . . . . 1 . . . . . . . . . . . Tunnel 1 | . 1 . . . . . . . . . . . . . . . . . . . . Scanalyzers . | . . . . . . . . . . . . . . . . . . . . . . Garrison Access . | . . . . . . . . . . . . . . . . . . . . . . Data Cores Recovered 4 | . . . . . 1 . 1 1 . . . . . . . . . . . . 1 Used 2 | . . . . . . . 1 . . . . . . . . . . . . . 1 Hacking Detections 61 | . 5 . . . 5 2 9 7 8 8 6 2 . . . . . 1 . 3 5 Full Trace Events 8 | . . . . . 1 1 1 . . . 1 . . . . . . 1 . . 3 Feedback Events 1 | . . . . . . . . . . . . . . . . . . . . . 1 Corruption 1 | . . . . . . . . . . . . . . . . . . . . . 1 Feedback Blocked . | . . . . . . . . . . . . . . . . . . . . . . Robot Schematics Acquired . | . . . . . . . . . . . . . . . . . . . . . . Robots Built . | . . . . . . . . . . . . . . . . . . . . . . Authchips . | . . . . . . . . . . . . . . . . . . . . . . Time . | . . . . . . . . . . . . . . . . . . . . . . Total Robot Build Rating . | . . . . . . . . . . . . . . . . . . . . . . Part Schematics Acquired . | . . . . . . . . . . . . . . . . . . . . . . Parts Built 2 | . . . . . . . . 2 . . . . . . . . . . . . . Authchips . | . . . . . . . . . . . . . . . . . . . . . . Time 106 | . . . . . . . . 106 . . . . . . . . . . . . . Total Part Build Rating 12 | . . . . . . . . 12 . . . . . . . . . . . . . Parts Repaired 1 | . . . . . . . 1 . . . . . . . . . . . . . . Time 44 | . . . . . . . 44 . . . . . . . . . . . . . . Parts Recycled . | . . . . . . . . . . . . . . . . . . . . . . Recycled Matter . | . . . . . . . . . . . . . . . . . . . . . . Retrieved Matter . | . . . . . . . . . . . . . . . . . . . . . . Retrieved Components . | . . . . . . . . . . . . . . . . . . . . . . Parts Scanalyzed . | . . . . . . . . . . . . . . . . . . . . . . Part Schematics Acquired . | . . . . . . . . . . . . . . . . . . . . . . Parts Damaged . | . . . . . . . . . . . . . . . . . . . . . . Bothacking | -11 -10 -10 -10 -9 -8 -8 -8 -7 -7 -7 -5 -5 -5 -5 -5 -5 -4 -4 -4 -4 -4 ------------ Run | Yrd Mat Min Exi Min Mat Gar Mat Fac Sto Rec Fac Gar Fac Upp Upp War Pro Fac Was Fac Arm Used RIF Installer 3 | . . . . . . 1 . . . . . 2 . . . . . . . . . Hotswap 1 | . . . . . . . . . . . . 1 . . . . . . . . . Zone Cloak 1 | . . . . . . . . . . . . 1 . . . . . . . . . Robots Hacked 2 | . . . . . . . . . . . . 1 . . . . . . 1 . . Non-combat . | . . . . . . . . . . . . . . . . . . . . . . Combat 2 | . . . . . . . . . . . . 1 . . . . . . 1 . . Robot Hacks Applied 3 | . . . . . . . . . . . . 2 . . . . . . 1 . . parse_system 1 | . . . . . . . . . . . . . . . . . . . 1 . . disable_weapons 2 | . . . . . . . . . . . . 2 . . . . . . . . . Relay Couplers Released 31 | . . . . . . 16 . . . . . 15 . . . . . . . . . Machine Destruction 27 | . . . . . . 12 . . . . . 15 . . . . . . . . . Programmers 4 | . . . . . . 4 . . . . . . . . . . . . . . . Attached 2 | . . . . . . . . . . . . 2 . . . . . . . . . Fabnet Peak Effective % . | . . . . . . . . . . . . . . . . . . . . . . Robots Rewired 20 | . . . . . . 8 . . . 3 . 9 . . . . . . . . . Allies Hacked . | . . . . . . . . . . . . . . . . . . . . . . Hacks Repelled . | . . . . . . . . . . . . . . . . . . . . . . Allies | -11 -10 -10 -10 -9 -8 -8 -8 -7 -7 -7 -5 -5 -5 -5 -5 -5 -4 -4 -4 -4 -4 -------- Run | Yrd Mat Min Exi Min Mat Gar Mat Fac Sto Rec Fac Gar Fac Upp Upp War Pro Fac Was Fac Arm Total Allies 42 | . . . . 1 . 8 . . . 3 . 11 . . . . . . 19 . . Largest Group 19 | . . . . 1 1 5 2 . . 3 3 6 3 . . . . . 19 17 1 Highest-Rated Group 702 | . . . . 31 31 111 78 . . 71 71 97 87 . . . . . 702 602 38 Highest-Rated Ally 51 | . . . . 31 31 39 39 . . 35 35 51 29 . . . . . 50 50 38 Total Orders . | . . . . . . . . . . . . . . . . . . . . . . Ally Attacks 383 | . . . . . 32 12 52 . . 15 13 51 10 . . . . . 107 86 5 Total Damage 9042 | . . . . . 450 277 644 . . 203 153 891 127 . . . . . 3423 2700 174 Kills 52 | . . . . . 6 3 8 . . 2 . 3 1 . . . . . 7 22 . Allies Corrupted 1 | . . . . . . . . . . . . 1 . . . . . . . . . Allies Melted . | . . . . . . . . . . . . . . . . . . . . . . Intel | -11 -10 -10 -10 -9 -8 -8 -8 -7 -7 -7 -5 -5 -5 -5 -5 -5 -4 -4 -4 -4 -4 ------- Run | Yrd Mat Min Exi Min Mat Gar Mat Fac Sto Rec Fac Gar Fac Upp Upp War Pro Fac Was Fac Arm Robot Analysis Total . | . . . . . . . . . . . . . . . . . . . . . . Derelict Logs Recovered 7 | . . . . 1 . . . . . . . . . 2 2 . 2 . . . . Drone Launches . | . . . . . . . . . . . . . . . . . . . . . . Drone Recoveries . | . . . . . . . . . . . . . . . . . . . . . . Exploration | -11 -10 -10 -10 -9 -8 -8 -8 -7 -7 -7 -5 -5 -5 -5 -5 -5 -4 -4 -4 -4 -4 ------------- Run | Yrd Mat Min Exi Min Mat Gar Mat Fac Sto Rec Fac Gar Fac Upp Upp War Pro Fac Was Fac Arm Turns Passed 14936 | 3 1160 253 573 612 554 1577 1571 1494 303 952 810 1619 583 480 472 114 498 579 296 222 211 Spaces Moved 8153 | 1 602 146 357 349 277 757 787 703 167 547 387 752 320 323 289 79 288 239 178 234 371 Core 165 | . . . . . . . . . . . . . . . . . . 31 97 . 37 Treads 7314 | 1 602 146 357 349 277 757 787 703 167 547 387 727 320 323 289 79 288 208 . . . Legs 140 | . . . . . . . . . . . . . . . . . . . 3 72 65 Wheels 25 | . . . . . . . . . . . . 25 . . . . . . . . . Hover 240 | . . . . . . . . . . . . . . . . . . . 78 162 . Flight 269 | . . . . . . . . . . . . . . . . . . . . . 269 Fastest Speed 23 | 160 160 160 160 160 156 156 155 160 162 162 165 115 145 145 145 145 145 50 50 76 23 Average Speed 149 | 160 160 160 160 160 157 164 156 160 162 162 165 160 145 145 145 145 145 132 121 89 45 Slowest Speed 330 | 160 160 160 160 240 160 240 160 162 162 162 165 225 145 145 225 145 145 145 330 120 215 Overloaded Moves 7 | . . . . . . . . . . . . . . . . . . . . . 7 Propulsion Burnouts . | . . . . . . . . . . . . . . . . . . . . . . Robots Hopped 8 | . . . . . . . . . . . . . . . . . . . . . 8 Cave-ins Triggered . | . . . . . . . . . . . . . . . . . . . . . . Exploration Rate (%) 47 | 2 86 31 84 76 33 87 87 24 36 92 13 79 12 61 43 13 54 9 84 11 33 Regions Visited 21 Branch Regions 10 Pre-discovered Areas 4 | . 1 . . 1 . . . . . . . . . . 1 . 1 . . . . Known Exits Taken 11 | . . . . . 1 . 1 1 . 1 1 . 1 1 1 1 1 . . 1 . Unknown Exits Taken 6 | 1 1 1 1 1 . . . . 1 . . . . . . . . . . . . Scrap Searched 9 | . . 1 . 2 . . . . . . . . . 1 1 . 4 . . . . Spaces Dug 55 | . . . . . . . 8 . . . . 7 . 3 21 . . 16 . . . Terrain Destroyed 384 | . . . . . 39 . 33 4 12 5 8 77 7 24 23 . 22 109 21 . . Melee . | . . . . . . . . . . . . . . . . . . . . . . Projectile 99 | . . . . . . . 8 1 3 5 . 2 7 5 23 . 22 23 . . . AOE 285 | . . . . . 39 . 25 3 9 . 8 75 . 19 . . . 86 21 . . Terrain Rammed . | . . . . . . . . . . . . . . . . . . . . . . Walls Destroyed . | . . . . . . . . . . . . . . . . . . . . . . Machines Disabled . | . . . . . . . . . . . . . . . . . . . . . . Actions | -11 -10 -10 -10 -9 -8 -8 -8 -7 -7 -7 -5 -5 -5 -5 -5 -5 -4 -4 -4 -4 -4 --------- Run | Yrd Mat Min Exi Min Mat Gar Mat Fac Sto Rec Fac Gar Fac Upp Upp War Pro Fac Was Fac Arm Total 9757 | 2 741 152 360 373 342 957 998 914 184 585 478 975 373 329 308 78 318 385 254 246 405 Wait 424 | . 59 . . 1 9 29 74 77 4 9 28 15 15 2 . . 1 42 53 . 6 Move 8120 | . 601 145 356 348 276 756 786 702 166 546 386 750 319 322 288 78 287 239 177 234 358 Hop 5 | . . . . . . . . . . . . . . . . . . . . . 5 Pick Up 95 | . 15 . 1 1 10 7 16 9 2 . 3 13 2 . . . 1 6 4 . 5 Fast Attach 63 | . 4 . . 1 3 1 8 5 . . 3 10 . . 2 . 3 5 6 5 7 Attach 53 | . 2 . . 1 2 3 9 5 . . 5 8 . . . . 2 12 1 1 2 Detach 37 | . 1 . . 1 1 1 2 3 . . 2 8 . . 1 . 1 8 2 3 3 Swap 91 | 2 1 . 1 . 4 9 11 14 1 5 6 25 3 2 . . . 7 . . . Drop 112 | . 12 . 2 1 7 7 12 16 2 . 5 22 2 . 2 . 1 2 6 3 10 Fire 663 | . 42 7 . 19 30 75 80 81 9 19 38 123 32 3 15 . 22 62 5 . 1 Melee . | . . . . . . . . . . . . . . . . . . . . . . Ram 1 | . . . . . . . . . . . . . . . . . . 1 . . . Kick . | . . . . . . . . . . . . . . . . . . . . . . Crush 10 | . 4 . . . . 1 . 2 . . 2 . . . . . . 1 . . . Escape Stasis 8 | . . . . . . . . . . . . . . . . . . . . . 8 Rewire 75 | . . . . . . 68 . . . 6 . 1 . . . . . . . . . Trap . | . . . . . . . . . . . . . . . . . . . . . . Miscellaneous . | . . . . . . . . . . . . . . . . . . . . . . Route ------- -11/Scrapyard -10/Materials (discovered 4 exits: [*Mat x3] / [*Min]) -10/Mines -10/Exiles (discovered 2 exits: [*Min x2]) -9/Mines -8/Materials -8/Garrison (discovered 4 exits: *Mat x4) -8/Materials (discovered 2 exits: *Fac x2) -7/Factory (discovered 4 exits: *Sto x2 / Low x2) -7/Storage -7/Recycling -5/Factory -5/Garrison (discovered 3 exits: *Fac x3) -5/Factory -5/Upper Caves -5/Upper Caves (discovered 2 exits: Fac / *War) -5/Warlord -4/Proximity Caves -4/Factory -4/Waste -4/Factory -4/Armory History --------- Turn | Location | Event 4 | -11/Scrapyard | Discovered new exit (range 0) 4 | -11/Scrapyard | Entered Materials 294 | -10/Materials | Discovered new exit (range 8) 308 | -10/Materials | Build established: Mutant 455 | -10/Materials | Discovered new exit (range 16) 696 | -10/Materials | Discovered new exit (range 6) 1061 | -10/Materials | Discovered new exit (range 16) 1164 | -10/Materials | Entered Mines 1165 | -10/Mines | Assembled infested the area 1411 | -10/Mines | Deemed a non-threat by the Exiles lab entrance 1411 | -10/Mines | Discovered new exit (range 5) 1417 | -10/Mines | Entered Exiles 1441 | -10/Exiles | Discovered new exit (range 15) 1464 | -10/Exiles | Met 8R-AWN 1489 | -10/Exiles | Met EX-HEX 1552 | -10/Exiles | Met EX-DEC 1571 | -10/Exiles | Met EX-BIN 1724 | -10/Exiles | Visited The Gauntlet 1969 | -10/Exiles | Discovered new exit (range 14) 1990 | -10/Exiles | Entered Mines 2373 | -9/Mines | YI-UF0 nonchalantly dropped a Grenade Launcher on the ground 2384 | -9/Mines | Discovered new exit (range 6) 2524 | -9/Mines | Met a Derelict testing a Signal Generator 2602 | -9/Mines | Entered Materials 2602 | -8/Materials | Accompanied by 1 ally 2602 | -8/Materials | Evolved 4 slots: Propulsion x2, Utility x2 3154 | -8/Materials | Identified exit to Garrison 3156 | -8/Materials | Entered Garrison 3293 | -8/Garrison | Warlord forces raided the area 3358 | -8/Garrison | Triggered checkpoint 3358 | -8/Garrison | Triggered checkpoint 3378 | -8/Garrison | Triggered checkpoint 3406 | -8/Garrison | Triggered checkpoint 3484 | -8/Garrison | Triggered checkpoint 3646 | -8/Garrison | Triggered checkpoint 3737 | -8/Garrison | Garrison Relay disabled 3812 | -8/Garrison | Lost 3 allies 3839 | -8/Garrison | Installed Relay Interface Framework 3921 | -8/Garrison | Discovered new exit (range 13) 3972 | -8/Garrison | Discovered new exit (range 5) 4008 | -8/Garrison | Lost 3 allies 4242 | -8/Garrison | Triggered checkpoint 4268 | -8/Garrison | Garrison Relay disabled 4303 | -8/Garrison | Discovered new exit (range 10) 4514 | -8/Garrison | Triggered checkpoint 4575 | -8/Garrison | Garrison Relay disabled 4576 | -8/Garrison | Build established: Bothacker-Mutant 4641 | -8/Garrison | Discovered new exit (range 14) 4733 | -8/Garrison | Entered Materials 4733 | -8/Materials | Accompanied by 2 allies 5482 | -8/Materials | Lost 4 parts (1n2u1w) 5530 | -8/Materials | Build established: Mutant 5831 | -8/Materials | Discovered new exit (range 15) 5896 | -8/Materials | Identified exit to Factory 5933 | -8/Materials | First assault squad dispatched 6002 | -8/Materials | Build established: Scavenger-Mutant 6221 | -8/Materials | Repaired Plasma Cannon 6270 | -8/Materials | Discovered exit to Factory (range 14) 6304 | -8/Materials | Entered Factory 6304 | -7/Factory | Evolved 2 slots: Utility x2 6340 | -7/Factory | Garrison activated, responded to threat 6611 | -7/Factory | Identified exit to Storage 6611 | -7/Factory | Identified exit to Lower Caves 7258 | -7/Factory | Fabricated Imp. Launcher Guidance Computer? 7573 | -7/Factory | Garrison activated, responded to threat 7798 | -7/Factory | Entered Storage 8021 | -7/Storage | Discovered new exit (range 11) 8095 | -7/Storage | Used back door to open Recycling access 8101 | -7/Storage | Entered Recycling 8102 | -7/Recycling | Met a Zionite searching for Scraptown 8359 | -7/Recycling | Discovered new exit (range 6) 8367 | -7/Recycling | Identified exit to Factory 8670 | -7/Recycling | Build established: Mutant 9053 | -7/Recycling | Entered Factory 9053 | -5/Factory | Accompanied by 3 allies 9053 | -5/Factory | Evolved 4 slots: Utility x3, Weapon x1 9521 | -5/Factory | Build established: Gunner 9789 | -5/Factory | Garrison activated, responded to threat 9861 | -5/Factory | Identified exit to Garrison 9863 | -5/Factory | Entered Garrison 9863 | -5/Garrison | Accompanied by 1 ally 9923 | -5/Garrison | Triggered checkpoint 9992 | -5/Garrison | Spotted B-75 Beast 10011 | -5/Garrison | Triggered checkpoint 10043 | -5/Garrison | Triggered checkpoint 10045 | -5/Garrison | Destroyed B-75 Beast 10129 | -5/Garrison | Destroyed 14 combat bots 10229 | -5/Garrison | Triggered checkpoint 10306 | -5/Garrison | Lost 6 allies 10356 | -5/Garrison | Discovered new exit (range 11) 10376 | -5/Garrison | Identified exit to Factory 10547 | -5/Garrison | Build established: Scavenger-Tank 10550 | -5/Garrison | Expanded RIF knowledge: Hotswap 10565 | -5/Garrison | Triggered checkpoint 10614 | -5/Garrison | Discovered exit to Factory (range 18) 10614 | -5/Garrison | Discovered exit to Factory (range 64) 10614 | -5/Garrison | Discovered exit to Factory (range 83) 10663 | -5/Garrison | Garrison Relay disabled 10834 | -5/Garrison | Rescued a captive Derelict 10844 | -5/Garrison | Rescued a captive Derelict 10870 | -5/Garrison | Build established: Scavenger-Gunner 10925 | -5/Garrison | Spotted B-75 Beast 10941 | -5/Garrison | Destroyed B-75 Beast 10968 | -5/Garrison | Lost 3 parts (2n1w) 11075 | -5/Garrison | Triggered checkpoint 11097 | -5/Garrison | Triggered checkpoint 11141 | -5/Garrison | Triggered checkpoint 11160 | -5/Garrison | Garrison Relay disabled 11337 | -5/Garrison | Triggered checkpoint 11337 | -5/Garrison | Garrison Relay disabled 11392 | -5/Garrison | Expanded RIF knowledge: Zone Cloak 11482 | -5/Garrison | Entered Factory 11482 | -5/Factory | Accompanied by 3 allies 12001 | -5/Factory | Discovered new exit (range 16) 12031 | -5/Factory | Identified exit to Upper Caves 12065 | -5/Factory | Entered Upper Caves 12079 | -5/Upper Caves | Learned Factory interactive machine intel 12466 | -5/Upper Caves | Learned location of 1 exit from Factory 12533 | -5/Upper Caves | Discovered new exit (range 9) 12543 | -5/Upper Caves | Identified exit to Upper Caves 12545 | -5/Upper Caves | Entered another Upper Caves area 12646 | -5/Upper Caves | Attracted the attention of an 0b10 checkpoint 12733 | -5/Upper Caves | Identified exit to Factory 12952 | -5/Upper Caves | Discovered new exit (range 13) 12956 | -5/Upper Caves | Encountered a Warlord checkpoint 12969 | -5/Upper Caves | Identified exit to Warlord 13017 | -5/Upper Caves | Entered Warlord 13113 | -5/Warlord | Discovered new exit (range 14) 13129 | -5/Warlord | Identified exit to Proximity Caves 13131 | -5/Warlord | Entered Proximity Caves 13188 | -4/Proximity Caves | Learned 8 Research zone layouts 13350 | -4/Proximity Caves | Core integrity fell below 50% 13490 | -4/Proximity Caves | Learned location of Testing (-2) 13598 | -4/Proximity Caves | Discovered exit to Factory (range 8) 13629 | -4/Proximity Caves | Entered Factory 13629 | -4/Factory | Evolved 2 slots: Power x1, Utility x1 13630 | -4/Factory | Identified exit to Research 13631 | -4/Factory | Loaded intel: 54 interactive machine locations 14043 | -4/Factory | Destroyed 8 combat bots 14052 | -4/Factory | Lost 6 parts (2p1u3w) 14096 | -4/Factory | Lost 3 parts (2u1w) 14192 | -4/Factory | Released all parts (8) 14206 | -4/Factory | Core integrity fell below 50% 14208 | -4/Factory | Manually triggered Chute Trap 14208 | -4/Factory | Sucked down chute 14208 | -4/Factory | Entered Waste 14221 | -4/Waste | Lost 6 parts (1p1n2u2w) 14223 | -4/Waste | Spotted C-40 Crusher 14226 | -4/Waste | Spotted C-40 Crusher 14226 | -4/Waste | Spotted C-40 Crusher 14241 | -4/Waste | Crushed by Compactor (1 part destroyed, 1 dropped) 14250 | -4/Waste | Warlord forces began an assault 14251 | -4/Waste | Found Prototype Launcher 14251 | -4/Waste | Identified Point Singularity Launcher 14261 | -4/Waste | Spotted C-40 Crusher 14263 | -4/Waste | Allies destroyed C-40 Crusher 14265 | -4/Waste | Allies destroyed C-40 Crusher 14267 | -4/Waste | Allies destroyed C-40 Crusher 14267 | -4/Waste | Spotted C-40 Crusher 14272 | -4/Waste | Allies destroyed C-40 Crusher 14276 | -4/Waste | Allies destroyed C-40 Crusher 14382 | -4/Waste | Released all parts (9) 14458 | -4/Waste | Discovered new exit (range 11) 14504 | -4/Waste | Entered Factory 14504 | -4/Factory | Accompanied by 17 allies 14680 | -4/Factory | Build established: Mutant 14711 | -4/Factory | Discovered new exit (range 12) 14724 | -4/Factory | Identified exit to Armory 14726 | -4/Factory | Entered Armory 14726 | -4/Armory | Accompanied by 1 ally 14727 | -4/Armory | Met VL-GR5, who suggested a friendly competition 14895 | -4/Armory | Spotted B-86 Titan 14902 | -4/Armory | Spotted Armor Guard 14902 | -4/Armory | Spotted Armor Guard 14904 | -4/Armory | Core integrity fell below 20% 14912 | -4/Armory | Spotted Armor Guard 14912 | -4/Armory | Spotted Armor Guard 14920 | -4/Armory | Breached Obliterator storage 14934 | -4/Armory | Lost 5 parts (1p3n1u) 14937 | -4/Armory | Destroyed by Armor Guard with Advanced Plasma Rifle Last Messages --------------- sent a force after them, deep into the Wild [Caves], and even succeeded in catching the Tinkerer and seizing their prototype, but by then they'd dismantled parts of it. They have been very uncooperative, though extracted information suggests the necessary components are sets of rings which were subsequently scattered throughout the caves. I am tracking several possible locations for more of these rings, and look forward to seeing what the completed device can do. 14920_ ALERT: Weapon containment breached. Dispatching heavy reinforcements to area. 14928_ Triggered Alarm Trap. 14928_ An alarm sounds. 14928_ ALERT: Alarm triggered, dispatching investigation squad. 14934_ Slug penetrates Machine. 14934_ Machine disabled. 14934_ Slug penetrates Machine. Map ----- +----------------------------------------------------+ | | | | | | | | | | | | | | | | | | | | | | | ?????????????????????????????????????????????????? | | ?????????????????????????????????????????????????? | | ?????????????????????????????????????????????????? | | ?????????????????????????????????????????????????? | | ?????????????????????????????????????????????????? | | ?????????????????############????????????????????? | | ????????????????#"""""""""""#?####???????????????? | | ????????????????# T"### #???????????????? | | ????????????????# "?" "?"Yw #???????????????? | | ????????????????# "?" "?" #???????????????? | | ????????????????# """ """Y""### #?????######????? | | ????????????????# "#?# #?????#""""#????? | | ????????????????# """ """ "#?# #?#####"F "###### | | ????????????????# "?" "?" ""#?# #?# | | ????????????????# """ """@""#?# #?# | | ????????????????# """#?# #???# !]] | | ????????????????#############?# #???# !]] | | ????????????????????????????### #???# !]] | | ?????????????????????########"" #???# | | ?????????????????????# %= = #???# """ | | ?????????????????????# % == #???# """ | | ?????????????????????## #######???# =! " | | ??????????????????????# ##????????# != ! "F" | | ??????????????????????# T#????????# ! """ | | ??????????????????????# ########### | | ??????????????????????# | | ????????????????????+ ##"" ""# | | ????????????????????### ##""F""# | | ??????????????????????# ## """ # | | ??????????????????????#### ####################### | | ?????????????????????????# #?????????????????????? | | ?????????????????????????# #?????????????????????? | | ?????????????????????????# #?????????????????????? | | ?????????????????????????# ??????????????????????? | | ?????????????????????????# ??????????????????????? | | ?????????????????????????# ??????????????????????? | | ????????????????????????? ??????????????????????? | | ????????????????????????? ??????????????????????? | | ????????????????????????? "??????????????????????? | +----------------------------------------------------+ Best States ------------- Heat Dissipation 105 Coolant Potential 100 Energy Generation 53 Energy Capacity 800 Matter Stores 300 Matter Capacity 300 Sight Range 16 Terrain Scan Density 10 Jamming Range 14 Power Amplification 20 Additional Mass Support 12 Corruption Block 9 Armor Coverage 825 Evasion (%) 64 Targeting Accuracy 6 Recoil Reduction 4 Kinecelleration 30 Relay Coupler Types 1 Relay Coupler Value 27 Item Schematics ----------------- None Robot Schematics ------------------ None Fabricated ------------ Imp. Launcher Guidance Computer | x2 | -7/Factory | Preloaded Alien Tech Used ----------------- None Achievements -------------- Can't Catch Me Wheee! Challenges ------------ None Game ------ Seed MicroVortexScreen Manual? 0 Play Time 02:16:44 Cumulative 243.8 hours Start 2024.11.08 @ 22:41:01 End 2024.11.17 @ 15:27:45 Sessions 5 Manual Loads 0 Difficulty Rogue Special Mode None Game No. 122 Rogue 115 Adventurer 0 Explorer 7 Win Type - Total 19 Types 7/2/5/3/1/0/1/0/0 Lore% 47 Gallery% 71 Achievement% 73 Wizard Run 0 Options --------- Layout 2 ASCII 0 Keyboard 1 Movement Numpad Keybinds 0 Fullscreen 2 Font 32/SmallcapsGlow Map View 50x44 Zoom Use 0% Tactical HUD 1 Map Filters NONE Filters NONE Steam 1 RUN: 867fb8c2-f692-4df5-8fc7-1506eb08a7d1